bitfinex-derivatives/quotes_SOLF0:USTF0_20250419
["timestamp","ask_amount","ask_price","bid_price","bid_amount"]
[1745024803695,1.216705,135.65,133.29,4.36851207]
[1745024804197,1.216705,135.64,133.3,4.36851207]
[1745024804396,1.216705,135.64,133.15,2.7048599]
[1745024804397,1.216705,135.63,133.31,4.36851207]
[1745024804597,1.216705,135.62,133.32,4.36851207]
[1745024804896,1.216705,135.61,133.33,4.36851207]
[1745024805097,1.216705,135.6,133.34,4.36851207]
[1745024805295,1.216705,135.59,133.35,4.36851207]
[1745024805494,1.216705,135.58,133.36,4.36851207]
[1745024805696,1.216705,135.57,133.37,4.36851207]
[1745024805896,1.216705,135.56,133.38,4.36851207]
[1745024806096,1.216705,135.55,133.39,4.36851207]
[1745024806297,1.216705,135.54,133.4,4.36851207]
[1745024806497,1.216705,135.53,133.41,4.36851207]
[1745024806796,1.216705,135.52,133.42,4.36851207]
[1745024806997,1.216705,135.51,133.43,4.36851207]
[1745024807197,1.216705,135.5,133.44,4.36851207]
[1745024807399,1.216705,135.49,133.45,4.36851207]
[1745024807598,1.216705,135.48,133.46,4.36851207]
[1745024807897,1.216705,135.47,133.47,4.36851207]
[1745024808097,1.216705,135.46,133.48,4.36851207]
[1745024808499,1.216705,135.45,133.49,4.36851207]
[1745024808793,9.48,135.69,133.5,3.00172333]
[1745024809100,1.21670768,135.68,133.51,4.36846196]
[1745024809298,1.21670768,135.67,133.52,4.36846196]
[1745024809500,1.21670768,135.66,133.53,4.36846196]
[1745024809800,1.21670768,135.65,133.54,4.36846196]
[1745024810095,1.21670768,135.65,133.55,4.36846196]
[1745024810400,1.21670768,135.64,133.56,1.36673863]
[1745024810599,1.21670768,135.64,133.57,1.36673863]
[1745024810799,1.21670768,135.64,133.58,3.00172333]
[1745024811100,1.21670768,135.63,133.59,1.36673863]
[1745024811300,1.21670768,135.63,133.6,1.36673863]
[1745024811500,1.21670768,135.62,133.61,1.36673863]
[1745024811700,1.21670768,135.61,133.62,4.36846196]
[1745024811901,1.21670768,135.6,133.63,4.36846196]
[1745024812101,1.21670768,135.59,133.64,4.36846196]
[1745024812401,1.21670768,135.58,133.65,4.36846196]
[1745024812801,1.21670768,135.57,133.66,4.36846196]
[1745024812998,1.21670768,135.56,133.67,4.36846196]
[1745024813204,1.21670768,135.55,133.68,4.36846196]
[1745024813404,1.21670768,135.54,133.69,4.36846196]
[1745024813605,1.21670768,135.53,133.7,4.36846196]
[1745024813904,1.21670768,135.52,133.71,4.36846196]
[1745024814104,1.21670768,135.51,133.72,4.36846196]
[1745024814305,1.21670768,135.5,133.73,4.36846196]
[1745024814505,1.21670768,135.49,133.74,4.36846196]
[1745024814805,1.21670768,135.48,133.75,4.36846196]
[1745024815006,1.21670768,135.47,133.76,4.36846196]
[1745024815302,1.21670768,135.46,133.77,4.36846196]
[1745024815507,1.21670768,135.45,133.78,4.36846196]
[1745024815707,1.21670768,135.44,133.79,4.36846196]
[1745024815906,1.21670768,135.43,133.8,4.36846196]
[1745024816105,1.21670768,135.42,133.81,4.36846196]
[1745024816306,1.21670768,135.41,133.82,4.36846196]
[1745024816508,1.21670768,135.4,133.83,4.36846196]
[1745024816707,1.21670768,135.39,133.84,4.36846196]
[1745024817008,1.21670768,135.38,133.85,4.36846196]
[1745024817308,1.21670768,135.37,133.86,4.36846196]
[1745024817606,9.48,135.69,133.56,1.29312747]
[1745024817904,1.21684223,135.68,133.57,4.36954685]
[1745024818108,1.21684223,135.67,133.58,4.36954685]
[1745024818303,1.21684223,135.66,133.59,4.36954685]
[1745024818607,1.21684223,135.65,133.6,4.36954685]
[1745024818810,1.21684223,135.64,133.61,4.36954685]
[1745024819006,1.21684223,135.63,133.62,4.36954685]
[1745024819212,1.21684223,135.62,133.63,4.36954685]
[1745024819415,1.21684223,135.61,133.64,4.36954685]
[1745024819712,1.21684223,135.6,133.65,4.36954685]
[1745024820011,1.21684223,135.59,133.66,4.36954685]
[1745024820212,1.21684223,135.58,133.67,4.36954685]
[1745024820411,1.21684223,135.57,133.68,4.36954685]
[1745024820712,1.21684223,135.56,133.69,4.36954685]
[1745024820912,1.21684223,135.55,133.7,4.36954685]
[1745024821115,1.21684223,135.54,133.71,4.36954685]
[1745024821311,1.21684223,135.53,133.72,4.36954685]
[1745024821612,1.21684223,135.52,133.73,4.36954685]
[1745024821912,1.21684223,135.51,133.74,4.36954685]
[1745024822115,1.21684223,135.5,133.75,4.36954685]
[1745024822311,1.21684223,135.49,133.76,4.36954685]
[1745024822511,1.21684223,135.48,133.77,4.36954685]
[1745024822712,1.21684223,135.47,133.78,4.36954685]
[1745024822913,1.21684223,135.46,133.79,4.36954685]
[1745024823115,1.21684223,135.45,133.8,4.36954685]
[1745024823314,9.48,135.69,133.64,1.29324761]
[1745024823613,1.21672178,135.68,133.65,4.36868392]
[1745024823812,1.21672178,135.67,133.66,4.36868392]
[1745024824015,1.21672178,135.66,133.67,4.36868392]
[1745024824314,1.21672178,135.65,133.68,4.36868392]
[1745024824515,1.21672178,135.64,133.69,4.36868392]
[1745024824716,1.21672178,135.63,133.7,4.36868392]
[1745024825015,1.21672178,135.62,133.71,4.36868392]
[1745024825217,1.21672178,135.61,133.72,4.36868392]
[1745024825417,1.21672178,135.6,133.73,4.36868392]
[1745024825612,1.21672178,135.59,133.74,4.36868392]
[1745024825816,1.21672178,135.58,133.75,4.36868392]
[1745024826015,1.21672178,135.57,133.76,4.36868392]
[1745024826216,1.21672178,135.56,133.77,4.36868392]
[1745024826517,1.21688722,135.55,133.78,4.36972194]
[1745024826716,1.21688722,135.54,133.79,4.36972194]
[1745024826916,1.21688722,135.53,133.8,4.36972194]
[1745024827116,1.21688722,135.52,133.81,4.36972194]
[1745024827413,1.21688722,135.51,133.82,4.36972194]
[1745024827618,1.21688722,135.5,133.83,4.36972194]
[1745024827818,1.21688722,135.49,133.84,4.36972194]
[1745024828119,1.21688722,135.48,133.85,4.36972194]
[1745024828320,1.21688722,135.47,133.86,4.36972194]
[1745024828519,1.21688722,135.46,133.87,4.36972194]
[1745024828818,1.21688722,135.45,133.88,4.36972194]
[1745024829019,1.21688722,135.44,133.89,4.36972194]
[1745024829220,1.21688722,135.43,133.9,4.36972194]
[1745024829422,1.21689408,135.42,133.91,4.36974664]
[1745024829624,1.21689408,135.41,133.92,4.36974664]
[1745024829821,1.21689408,135.4,133.93,4.36974664]
[1745024830021,1.21689408,135.39,133.94,3.00281972]
[1745024830323,1.21689408,135.38,133.94,4.36974664]
[1745024830622,1.21689408,135.37,133.95,4.36974664]
[1745024830822,1.21689408,135.36,133.96,3.00281972]
[1745024831021,4.97,135.69,133.96,4.36974633]
[1745024831224,3.44,135.36,133.96,1.36692661]
[1745024831521,4.6568938,135.36,133.97,3.00290134]
[1745024831720,4.6568938,135.36,133.98,3.00290134]
[1745024831920,1.2168938,135.35,133.98,4.36982795]
[1745024832323,3.44,135.36,133.78,1.29276719]
[1745024834323,3.44,135.36,133.78,1.29761172]
[1745024834824,7.48,135.36,133.78,1.29761172]
[1745024835924,7.48,135.36,132.73,1.29761172]
[1745024836826,4.04,135.36,132.73,1.29761172]
[1745024843331,4.04,135.36,132.73,1.29766011]
[1745024855337,4.04,135.36,132.73,1.29761172]
[1745024867354,4.04,135.36,132.73,1.29732148]
[1745024870354,4.04,135.36,132.73,1.29751496]
[1745024879366,4.04,135.36,132.73,1.29722476]
[1745024882266,1.21643744,135.35,133.79,4.36650548]
[1745024882469,1.21643744,135.34,133.8,3.00003691]
[1745024882668,1.21643744,135.34,133.81,3.00003691]
[1745024882967,1.21643744,135.33,133.82,4.36650548]
[1745024883168,1.21643744,135.32,133.83,4.36650548]
[1745024883369,1.21643744,135.31,133.84,4.36650548]
[1745024883664,1.21643744,135.3,133.85,4.36650548]
[1745024883868,1.21643744,135.29,133.86,4.36650548]
[1745024884070,1.21643744,135.28,133.87,4.36650548]
[1745024884266,1.21669686,135.27,133.88,4.3684205]
[1745024884470,1.21669686,135.26,133.89,4.3684205]
[1745024884670,1.21669686,135.25,133.9,4.3684205]
[1745024884870,1.21669686,135.24,133.91,4.3684205]
[1745024885066,1.21669686,135.24,133.92,4.3684205]
[1745024885273,1.21669686,135.24,133.18,2.70323571]
[1745024885274,1.21671504,135.23,133.93,4.36853464]
[1745024885473,1.21671504,135.22,133.94,4.36853464]
[1745024885774,1.21671504,135.21,133.95,4.36853464]
[1745024886073,1.21671504,135.2,133.96,4.36853464]
[1745024886274,1.21671504,135.19,133.97,4.36853464]
[1745024886475,1.21671504,135.18,133.98,4.36853464]
[1745024886674,1.21671504,135.17,133.99,4.36853464]
[1745024886876,1.21671504,135.16,134.0,4.36853464]
[1745024887075,1.21671504,135.15,134.01,4.36853464]
[1745024887277,1.21671504,135.14,134.02,4.36853464]
[1745024887574,1.21671504,135.13,134.03,4.36853464]
[1745024887776,1.21671504,135.12,134.04,4.36853464]
[1745024887974,1.21671504,135.11,134.05,4.36853464]
[1745024888175,1.21671504,135.1,134.06,4.36853464]
[1745024888475,1.21671504,135.09,134.07,4.36853464]
[1745024888674,1.21671504,135.08,134.08,4.36853464]
[1745024888870,1.21671504,135.07,134.09,4.36853464]
[1745024889175,1.21671504,135.06,134.1,4.36853464]
[1745024889374,1.21671504,135.05,134.11,4.36853464]
[1745024889576,1.21671504,135.04,134.12,4.36853464]
[1745024889778,1.21671504,135.04,133.2,1.29252711]
[1745024889779,1.21671504,135.03,134.13,4.36853464]
[1745024889977,1.21671504,135.03,134.14,1.36674602]
[1745024890175,1.21671504,135.02,134.14,4.36853464]
[1745024890374,1.21671504,135.01,134.15,4.36853464]
[1745024890577,1.21671504,135.01,134.16,1.36674602]
[1745024890778,1.21671504,135.0,134.16,4.36853464]
[1745024890977,1.21671504,134.99,134.17,4.36853464]
[1745024891178,1.21671504,134.99,134.18,1.36674602]
[1745024891377,1.21671504,134.98,134.18,1.36674602]
[1745024891778,3.04,135.22,133.59,1.29334374]
[1745024894381,3.04,135.22,133.59,1.29814418]
[1745024895481,3.04,135.22,133.59,1.29824103]
[1745024897779,3.12761733,136.18,133.59,1.29824103]
[1745024898181,3.12761733,136.18,132.73,1.29824103]
[1745024900281,3.12761733,136.18,132.73,1.29592046]
[1745024903388,3.12761733,136.18,132.73,1.29572745]
[1745024906385,3.12761733,136.18,132.73,1.29567921]
[1745024911995,2.73383276,135.78,133.13,2.7096378]
[1745024912290,2.73383276,135.78,133.14,4.37396682]
[1745024912592,1.21688222,135.77,133.15,4.37396682]
[1745024912793,1.21688222,135.76,133.16,4.37396682]
[1745024913093,1.21688222,135.75,133.17,4.37396682]
[1745024913290,1.21688222,135.74,133.18,4.37396682]
[1745024913494,1.21688222,135.73,133.19,4.37396682]
[1745024913698,1.21688222,135.72,133.2,4.37396682]
[1745024913999,1.21688222,135.71,133.21,4.37396682]
[1745024914300,1.21688222,135.7,133.22,4.37396682]
[1745024914495,1.21688222,135.69,133.23,4.37396682]
[1745024914694,1.21688222,135.68,133.24,4.37396682]
[1745024914898,1.21688222,135.67,133.25,4.37396682]
[1745024915194,1.21688222,135.66,133.26,4.37396682]
[1745024915401,1.21688222,135.65,133.27,4.37396682]
[1745024915600,1.21688222,135.64,133.28,4.37396682]
[1745024915801,1.21688222,135.63,133.29,4.37396682]
[1745024916102,1.21688222,135.62,133.3,4.37396682]
[1745024916401,1.21688222,135.61,133.31,4.37396682]
[1745024916796,1.21688222,135.6,133.32,4.37396682]
[1745024917098,1.21688222,135.59,133.33,4.37396682]
[1745024917303,1.21688222,135.58,133.34,4.37396682]
[1745024917801,1.21688222,135.57,133.35,4.37396682]
[1745024918002,1.21688222,135.56,133.36,4.37396682]
[1745024918203,1.21688222,135.55,133.37,4.37396682]
[1745024918503,1.21688222,135.54,133.38,4.37396682]
[1745024918704,1.21688222,135.53,133.39,4.37396682]
[1745024918903,1.21688222,135.52,133.4,4.37396682]
[1745024919098,1.21688222,135.51,133.41,4.37396682]
[1745024919298,1.21688222,135.5,133.42,4.37396682]
[1745024919602,1.21688222,135.49,133.43,4.37396682]
[1745024919804,1.21688222,135.48,133.44,4.37396682]
[1745024920103,1.21688222,135.47,133.45,4.37396682]
[1745024920304,1.21688222,135.46,133.46,4.37396682]
[1745024920504,1.21654815,135.45,133.47,3.00535475]
[1745024920704,1.21654815,135.44,133.48,4.37193259]
[1745024920905,1.21654815,135.43,133.49,4.37193259]
[1745024921107,2.73383276,135.8,133.16,2.7096378]
[1745024921108,1.21654815,135.42,133.5,4.37193259]
[1745024921407,1.21654815,135.41,133.51,4.37193259]
[1745024921607,1.21654815,135.4,133.52,4.37193259]
[1745024921808,1.21654815,135.39,133.53,4.37193259]
[1745024922008,2.73383276,135.8,133.17,1.29353604]
[1745024922209,1.2165263,135.79,133.18,4.37171318]
[1745024922507,1.2165263,135.78,133.19,4.37171318]
[1745024922709,1.2165263,135.77,133.2,4.37171318]
[1745024922910,1.2165263,135.76,133.21,4.37171318]
[1745024923209,1.2165263,135.75,133.22,4.37171318]
[1745024923410,1.2165263,135.74,133.23,4.37171318]
[1745024923606,1.21597797,135.73,133.24,4.36732636]
[1745024923806,1.21597797,135.72,133.25,4.36732636]
[1745024924007,1.21597797,135.71,133.26,4.36732636]
[1745024924205,1.21597797,135.7,133.27,4.36732636]
[1745024924505,2.73383276,135.87,133.28,4.36732636]
[1745024924506,1.21597797,135.69,133.28,4.36732636]
[1745024924712,1.21597797,135.68,133.29,4.36732636]
[1745024924912,1.21597797,135.67,133.3,4.36732636]
[1745024925111,1.2159917,135.67,133.3,4.36740968]
[1745024925312,1.2159917,135.66,133.31,4.36740968]
[1745024925512,1.2159917,135.65,133.32,4.36740968]
[1745024925712,1.2159917,135.64,133.33,4.36740968]
[1745024925914,1.2159917,135.63,133.34,4.36740968]
[1745024926114,1.2159917,135.62,133.35,4.36740968]
[1745024926414,1.2159917,135.61,133.36,4.36740968]
[1745024926714,1.2159917,135.6,133.37,4.36740968]
[1745024926915,1.2159917,135.59,133.38,4.36740968]
[1745024927216,1.2159917,135.58,133.39,4.36740968]
[1745024927514,1.2159917,135.57,133.4,4.36740968]
[1745024927715,1.2159917,135.56,133.41,4.36740968]
[1745024927917,1.2159917,135.55,133.42,4.36740968]
[1745024928118,1.21597449,135.54,133.43,4.36735268]
[1745024928319,1.21597449,135.53,133.44,4.36735268]
[1745024928619,1.21597449,135.52,133.45,4.36735268]
[1745024928819,1.21597449,135.51,133.46,4.36735268]
[1745024929019,1.21597449,135.5,133.47,4.36735268]
[1745024929220,1.21597449,135.49,133.48,4.36735268]
[1745024929520,1.21597449,135.48,133.49,4.36735268]
[1745024929718,1.21597449,135.47,133.5,4.36735268]
[1745024929921,1.21597449,135.46,133.51,3.0013549]
[1745024930121,1.21597449,135.46,133.52,4.36735268]
[1745024930323,1.21597449,135.45,133.53,3.0013549]
[1745024930521,1.21597449,135.45,133.54,3.0013549]
[1745024930821,6.02597449,135.44,133.55,3.0013549]
[1745024931022,4.81,135.44,133.56,3.0013549]
[1745024931321,4.81,135.44,133.57,1.36585299]
[1745024931520,1.21583093,135.43,133.57,1.36585299]
[1745024931720,1.21583093,135.43,133.58,3.00105905]
[1745024931920,1.21583093,135.42,133.59,1.36585299]
[1745024932120,1.21583093,135.41,133.6,1.36585299]
[1745024932321,1.21583093,135.4,133.61,4.36691204]
[1745024932619,1.21583093,135.39,133.62,4.36691204]
[1745024932821,1.21583093,135.38,133.63,4.36691204]
[1745024933020,1.21583093,135.37,133.64,4.36691204]
[1745024933221,1.21583093,135.36,133.65,4.36691204]
[1745024933420,1.21583093,135.35,133.66,4.36691204]
[1745024933616,1.21583093,135.34,133.67,4.36691204]
[1745024933819,1.21583093,135.33,133.68,4.36691204]
[1745024934121,1.21594509,135.32,133.69,4.36776671]
[1745024934321,1.21594509,135.31,133.7,4.36776671]
[1745024934620,1.21594509,135.3,133.71,4.36776671]
[1745024934816,1.21594509,135.29,133.72,4.36776671]
[1745024935020,1.21594509,135.28,133.73,4.36776671]
[1745024935223,1.21594509,135.27,133.74,4.36776671]
[1745024935420,1.21594509,135.26,133.75,4.36776671]
[1745024935721,1.21594509,135.25,133.76,4.36776671]
[1745024935922,1.21594509,135.24,133.77,4.36776671]
[1745024936220,1.21594509,135.23,133.78,4.36776671]
[1745024936719,1.21594509,135.22,133.79,4.36776671]
[1745024936920,1.21594509,135.21,133.8,4.36776671]
[1745024937221,1.21609481,135.2,133.81,4.36880799]
[1745024937420,4.81,135.44,133.58,1.29353604]
[1745024937421,1.21609481,135.19,133.82,4.36880799]
[1745024937716,1.21609481,135.18,133.83,4.36880799]
[1745024937920,1.21609481,135.17,133.84,4.36880799]
[1745024938120,1.21609481,135.16,133.85,4.36880799]
[1745024938315,1.21609481,135.15,133.86,4.36880799]
[1745024938622,4.81,135.44,133.58,1.29353604]
[1745024938815,1.21612455,135.43,133.59,4.36927808]
[1745024939019,1.21612455,135.42,133.6,4.36927808]
[1745024939227,1.21612455,135.41,133.61,4.36927808]
[1745024939520,1.21612455,135.4,133.62,4.36927808]
[1745024939719,1.21612455,135.39,133.63,4.36927808]
[1745024939920,1.21612455,135.38,133.64,4.36927808]
[1745024940120,1.21612455,135.37,133.65,4.36927808]
[1745024940422,1.21612455,135.36,133.66,4.36927808]
[1745024940621,1.21612455,135.35,133.67,4.36927808]
[1745024940921,1.21612455,135.34,133.68,4.36927808]
[1745024941122,1.21612455,135.33,133.69,4.36927808]
[1745024941318,4.81,135.44,133.7,1.36610071]
[1745024941523,1.21607605,135.43,133.71,4.3689497]
[1745024941723,1.21607605,135.42,133.72,4.3689497]
[1745024941922,1.21607605,135.41,133.73,4.3689497]
[1745024942223,1.21607605,135.4,133.74,4.3689497]
[1745024942424,1.21607605,135.39,133.75,4.3689497]
[1745024942722,1.21607605,135.38,133.76,4.3689497]
[1745024943023,1.21607605,135.37,133.77,4.3689497]
[1745024943222,1.21607605,135.36,133.78,4.3689497]
[1745024943423,1.21607605,135.35,133.79,4.3689497]
[1745024943722,1.21607605,135.34,133.8,4.3689497]
[1745024943923,1.21607605,135.33,133.81,4.3689497]
[1745024944118,1.21607605,135.32,133.82,4.3689497]
[1745024944319,1.21607605,135.31,133.83,4.3689497]
[1745024944521,1.21593986,135.3,133.84,4.36780955]
[1745024944724,1.21593986,135.29,133.85,4.36780955]
[1745024944923,1.21593986,135.28,133.86,4.36780955]
[1745024945119,1.21593986,135.28,133.87,1.36596368]
[1745024945318,4.43,135.3,133.59,1.29394486]
[1745024945319,1.21593986,135.27,133.88,4.36780955]
[1745024945520,1.21593986,135.26,133.89,4.36780955]
[1745024945719,1.21593986,135.25,133.9,4.36780955]
[1745024945919,4.43,135.3,133.59,1.29394486]
[1745024946222,1.21582003,135.29,133.6,4.36685702]
[1745024946422,1.21582003,135.28,133.61,4.36685702]
[1745024946622,1.21582003,135.27,133.62,4.36685702]
[1745024946822,1.21582003,135.26,133.63,4.36685702]
[1745024947025,1.21582003,135.25,133.64,4.36685702]
[1745024947322,1.21582003,135.24,133.65,4.36685702]
[1745024947523,1.21576996,135.23,133.66,4.36615162]
[1745024947724,1.21576996,135.22,133.67,4.36615162]
[1745024947925,1.21576996,135.21,133.68,4.36615162]
[1745024948219,1.21576996,135.2,133.69,4.36615162]
[1745024948426,1.21576996,135.19,133.7,4.36615162]
[1745024948621,1.21576996,135.18,133.71,4.36615162]
[1745024948822,1.21576996,135.17,133.72,4.36615162]
[1745024949025,1.21576996,135.16,133.73,4.36615162]
[1745024949226,1.21576996,135.15,133.74,4.36615162]
[1745024949426,1.21576996,135.14,133.75,4.36615162]
[1745024949620,1.21576996,135.13,133.76,4.36615162]
[1745024949824,1.21576996,135.12,133.77,4.36615162]
[1745024950026,1.21576996,135.11,133.78,3.00036024]
[1745024950328,1.21576996,135.1,133.78,1.36579138]
[1745024950528,1.21574284,135.1,133.79,3.00021845]
[1745024950728,1.21574284,135.09,133.79,4.36598256]
[1745024950928,1.21574284,135.09,133.8,3.00021845]
[1745024951124,1.21574284,135.09,133.81,1.36576411]
[1745024951329,4.43,135.3,133.82,1.36576411]
[1745024951330,1.21574284,135.08,133.82,1.36576411]
[1745024951628,4.43,135.3,133.83,4.36534791]
[1745024951829,1.2157413,135.29,133.84,1.36576233]
[1745024952029,1.2157413,135.28,133.85,4.36534791]
[1745024952228,1.2157413,135.27,133.86,4.36534791]
[1745024952429,1.2157413,135.26,133.87,4.36534791]
[1745024952630,1.2157413,135.25,133.88,4.36534791]
[1745024952824,1.2157413,135.24,133.89,4.36534791]
[1745024953130,1.2157413,135.23,133.9,4.36534791]
[1745024953430,1.2157413,135.22,133.91,4.36534791]
[1745024953729,1.2157413,135.21,133.92,4.36534791]
[1745024953929,1.2157413,135.2,133.93,4.36534791]
[1745024954129,1.21569287,135.19,133.94,4.36477173]
[1745024954330,1.21569287,135.18,133.95,4.36477173]
[1745024954531,1.21569287,135.17,133.96,4.36477173]
[1745024954725,1.21569287,135.16,133.97,4.36477173]
[1745024954929,1.21569287,135.15,133.98,4.36477173]
[1745024955230,1.21569287,135.15,133.71,1.29360816]
[1745024955231,1.21569287,135.14,133.99,4.36477173]
[1745024955532,1.2156138,135.13,134.0,4.3648896]
[1745024955732,1.2156138,135.12,134.01,4.3648896]
[1745024955933,1.2156138,135.11,134.02,4.3648896]
[1745024956231,1.2156138,135.1,134.03,4.3648896]
[1745024956432,1.2156138,135.09,134.04,4.3648896]
[1745024956632,4.43,135.3,134.05,1.36565304]
[1745024956830,1.21563303,135.29,134.06,4.36507834]
[1745024957030,1.21563303,135.28,134.07,4.36507834]
[1745024957230,1.21563303,135.27,134.08,4.36507834]
[1745024957432,1.21563303,135.26,134.09,4.36507834]
[1745024957631,1.21563303,135.25,134.1,4.36507834]
[1745024957832,1.21563303,135.24,134.11,4.36507834]
[1745024958131,1.21563303,135.23,134.12,4.36507834]
[1745024958333,1.21563303,135.22,134.13,4.36507834]
[1745024958534,1.21563303,135.21,134.14,4.36507834]
[1745024959134,4.43,135.3,133.85,1.29291128]
[1745024960435,4.43,135.3,133.85,1.29741821]
[1745024963040,4.43,135.3,133.85,1.29761172]
[1745024963540,4.43,135.3,133.85,1.29775689]
[1745024966141,4.43,135.3,133.85,1.29778109]
[1745024966641,4.43,135.3,133.85,1.29780529]
[1745024967743,4.43,135.3,133.85,1.29809575]
[1745024968244,4.43,135.3,133.85,1.2981926]
[1745024974742,4.43,135.3,133.85,1.29814418]
[1745024980145,1.21763515,135.29,133.85,1.29814418]
[1745024980653,1.21763515,135.28,133.86,4.38026028]
[1745024980852,2.73535258,135.7,133.85,1.29814418]
[1745024981054,1.2176492,135.69,133.87,3.01287179]
[1745024981254,1.2176492,135.68,133.88,4.38170611]
[1745024981455,2.73535258,135.7,133.89,4.38170611]
[1745024981456,1.2176492,135.67,133.89,4.38170611]
[1745024981656,2.73535258,135.7,133.85,1.29814418]
[1745024981657,1.2176492,135.66,133.9,4.38170611]
[1745024981854,1.2176492,135.65,133.91,4.38170611]
[1745024982155,1.2176492,135.64,133.92,4.38170611]
[1745024982355,1.2176492,135.63,133.93,4.38170611]
[1745024982555,1.2176492,135.62,133.94,4.38170611]
[1745024982854,1.2176492,135.61,133.95,4.38170611]
[1745024983257,1.2176492,135.6,133.96,4.38170611]
[1745024983450,1.2176492,135.59,133.97,4.38170611]
[1745024983654,1.2176492,135.58,133.98,4.38170611]
[1745024983852,1.2176492,135.57,133.99,4.38170611]
[1745024984054,1.2176492,135.56,134.0,4.38170611]
[1745024984254,1.2176492,135.56,133.85,1.29814418]
[1745024984255,1.2176492,135.55,134.01,4.38170611]
[1745024984551,3.77,135.62,133.85,1.29814418]
[1745024984757,1.21806724,135.54,134.02,1.36811283]
[1745024984956,1.21806724,135.53,134.03,4.38371892]
[1745024985156,1.21806724,135.52,134.04,4.38371892]
[1745024985356,1.21806724,135.51,134.05,4.38371892]
[1745024985558,1.21806724,135.5,134.06,1.36811283]
[1745024985856,1.21806724,135.49,134.07,1.36811283]
[1745024986058,1.21806724,135.48,134.08,1.36811283]
[1745024986257,1.21806724,135.47,134.09,1.36811283]
[1745024986558,3.77,135.62,133.85,1.29814418]
[1745024986559,1.21806724,135.46,134.1,1.36811283]
[1745024986752,1.21806724,135.45,134.11,1.36811283]
[1745024986957,1.21806724,135.44,134.12,1.36811283]
[1745024987159,1.21806724,135.43,134.13,1.36811283]
[1745024987458,1.21806724,135.42,134.14,1.36811283]
[1745024987659,1.21806724,135.41,134.15,1.36811283]
[1745024987859,1.21806724,135.4,134.16,1.36811283]
[1745024988066,1.21806724,135.39,134.17,1.36811283]
[1745024988257,1.21806724,135.38,134.18,1.36811283]
[1745024988457,1.21806712,135.37,134.19,1.36811271]
[1745024988753,1.21806712,135.36,134.2,1.36811271]
[1745024988953,1.21806712,135.35,134.01,4.38325402]
[1745024989260,1.21806712,135.34,134.02,4.38325402]
[1745024989559,1.21806712,135.33,134.03,4.38325402]
[1745024989760,1.21806712,135.32,134.04,4.38325402]
[1745024990060,1.21806712,135.31,134.05,4.38325402]
[1745024990260,1.21806712,135.3,134.06,4.38325402]
[1745024990463,1.21806712,135.29,134.07,1.36811271]
[1745024990662,1.21806712,135.28,134.08,1.36811271]
[1745024990863,1.21806712,135.28,133.94,3.01514131]
[1745024990864,1.21806712,135.27,133.95,3.01511304]
[1745024991061,1.21806712,135.26,134.09,1.36811271]
[1745024991258,1.21806712,135.26,133.96,4.38322575]
[1745024991462,1.21806712,135.25,134.1,1.36811271]
[1745024991762,1.21806712,135.24,134.11,1.36811271]
[1745024991962,1.21806712,135.23,134.12,1.36811271]
[1745024992163,1.21806712,135.22,134.13,1.36811271]
[1745024992455,1.21806712,135.21,134.14,1.36811271]
[1745024992662,1.21806712,135.2,134.15,1.36811271]
[1745024992861,1.21806712,135.19,134.16,1.36811271]
[1745024993061,1.21806712,135.18,134.17,1.36811271]
[1745024993261,3.77,135.62,133.93,1.29341584]
[1745024993461,1.21825196,135.61,133.94,4.38413367]
[1745024993662,1.21825196,135.6,133.95,4.38413367]
[1745024993863,1.21825196,135.59,133.96,4.38413367]
[1745024994163,1.21825196,135.58,133.97,4.38413367]
[1745024994357,1.21825196,135.57,133.98,4.38413367]
[1745024994561,3.77,135.62,133.93,1.29341584]
[1745024994762,1.2182555,135.56,133.99,1.36830296]
[1745024994963,1.21827631,135.55,134.0,4.38417831]
[1745024995259,1.21827631,135.54,134.01,4.38417831]
[1745024995464,1.21827631,135.53,134.02,4.38417831]
[1745024995658,1.21827631,135.52,134.03,4.38417831]
[1745024995857,1.21827631,135.51,134.04,4.38417831]
[1745024996062,1.21827631,135.5,134.05,4.38417831]
[1745024996257,1.21827631,135.49,134.06,1.36830296]
[1745024996462,2.73535258,135.65,134.07,1.36830296]
[1745024996463,1.21827631,135.48,134.07,1.36830296]
[1745024996765,1.21827631,135.47,134.08,1.36830296]
[1745024996965,1.21827631,135.46,134.09,1.36830296]
[1745024997159,1.21827631,135.45,134.1,1.36830296]
[1745024997363,1.21827631,135.44,134.11,1.36830296]
[1745024997666,1.21827631,135.43,134.12,1.36830296]
[1745024997966,1.21827631,135.42,134.13,1.36830296]
[1745024998161,1.21827631,135.41,134.14,1.36830296]
[1745024998365,2.73535258,135.65,134.15,1.36830296]
[1745024998366,1.21827631,135.4,134.15,1.36830296]
[1745024998666,1.21827631,135.39,134.16,1.36830296]
[1745024998860,1.21827631,135.38,134.17,1.36830296]
[1745024999166,1.21827631,135.37,134.18,1.36830296]
[1745024999366,1.21827631,135.36,134.03,4.38417831]
[1745024999568,1.21848256,135.35,134.04,1.36853261]
[1745024999768,1.21848256,135.34,134.06,1.29358412]
[1745025000068,1.21848256,135.33,134.07,1.36853261]